fUST/lending_fUST_20260428
["ID","MTS","AMOUNT","RATE_DAILY","PERIOD"]
[421282905,1777335044141,-500.0,0.00019178,2]
[421282906,1777335044150,-548.75,0.00019178,2]
[421282907,1777335044160,-500.0,0.00019178,2]
[421282908,1777335044169,-159.01200148,0.00019178,2]
[421282909,1777335044180,-500.0,0.00019178,2]
[421282910,1777335044189,-500.0,0.00019178,2]
[421282911,1777335044198,-500.0,0.00019178,2]
[421282912,1777335044207,-372.66911806,0.00019178,2]
[421282913,1777335044216,-500.0,0.00019178,2]
[421282914,1777335044225,-500.0,0.00019178,2]
[421282915,1777335044234,-500.0,0.00019178,2]
[421282916,1777335044244,-500.0,0.00019178,2]
[421282917,1777335044253,-500.0,0.00019178,2]
[421282918,1777335044262,-500.0,0.00019178,2]
[421282919,1777335044271,-176.30903206,0.00019178,2]
[421282920,1777335044280,-500.0,0.00019178,2]
[421282921,1777335044290,-639.88850262,0.00019178,2]
[421282922,1777335044299,-500.0,0.00019178,2]
[421282923,1777335044308,-500.0,0.00019178,2]
[421282924,1777335044318,-500.0,0.00019178,2]
[421282925,1777335044327,-500.0,0.00019178,2]
[421282926,1777335044337,-435.31701311,0.00019178,2]
[421282927,1777335044346,-500.0,0.00019178,2]
[421282928,1777335044355,-500.0,0.00019178,2]
[421282930,1777335044365,-500.0,0.00019178,2]
[421282932,1777335044374,-530.59160913,0.00019178,2]
[421282934,1777335044383,-500.0,0.00019178,2]
[421282936,1777335044393,-500.0,0.00019178,2]
[421282938,1777335044402,-500.0,0.00019178,2]
[421282939,1777335044411,-500.0,0.00019178,2]
[421282940,1777335044421,-500.0,0.00019178,2]
[421282941,1777335044430,-500.0,0.00019178,2]
[421282942,1777335044440,-300.0,0.00019178,2]
[421282943,1777335044450,-425.20897496,0.00019178,2]
[421282944,1777335044459,-569.15975143,0.00019178,2]
[421282945,1777335044468,-500.0,0.00019178,2]
[421282946,1777335044478,-500.0,0.00019178,2]
[421282947,1777335044487,-500.0,0.00019178,2]
[421282948,1777335044497,-500.0,0.00019178,2]
[421282949,1777335044506,-500.0,0.00019178,2]
[421282950,1777335044516,-500.0,0.00019178,2]
[421282951,1777335044525,-500.0,0.00019178,2]
[421282952,1777335044535,-500.0,0.00019178,2]
[421282953,1777335044544,-500.0,0.00019178,2]
[421282954,1777335044554,-500.0,0.00019178,2]
[421282955,1777335044564,-500.0,0.00019178,2]
[421282956,1777335044574,-500.0,0.00019178,2]
[421282957,1777335044584,-500.0,0.00019178,2]
[421282958,1777335044593,-500.0,0.00019178,2]
[421282959,1777335044603,-500.0,0.00019178,2]
[421282960,1777335044612,-500.0,0.00019178,2]
[421282961,1777335044621,-500.0,0.00019178,2]
[421282962,1777335044630,-500.0,0.00019178,2]
[421282963,1777335044639,-500.0,0.00019178,2]
[421282964,1777335044648,-500.0,0.00019178,2]
[421282965,1777335044658,-500.0,0.00019178,2]
[421282966,1777335044667,-500.0,0.00019178,2]
[421282967,1777335044676,-500.0,0.00019178,2]
[421282968,1777335044686,-500.0,0.00019178,2]
[421282969,1777335044696,-500.0,0.00019178,2]
[421282970,1777335044705,-500.0,0.00019178,2]
[421282971,1777335044715,-500.0,0.00019178,2]
[421282972,1777335044724,-500.0,0.00019178,2]
[421282973,1777335044734,-500.0,0.00019178,2]
[421282974,1777335044743,-500.0,0.00019178,2]
[421282975,1777335044752,-623.92,0.00019178,2]
[421282976,1777335044761,-500.0,0.00019178,2]
[421282977,1777335044770,-500.0,0.00019178,2]
[421282978,1777335044780,-500.0,0.00019178,2]
[421282979,1777335044789,-500.0,0.00019178,2]
[421282980,1777335044798,-500.0,0.00019178,2]
[421282981,1777335044808,-500.0,0.00019178,2]
[421282982,1777335044817,-500.0,0.00019178,2]
[421282983,1777335044826,-500.0,0.00019178,2]
[421282984,1777335044836,-500.0,0.00019178,2]
[421282985,1777335044845,-500.0,0.00019178,2]
[421282986,1777335044854,-500.0,0.00019178,2]
[421282987,1777335044863,-542.61,0.00019178,2]
[421282988,1777335044872,-500.0,0.00019178,2]
[421282989,1777335044882,-500.0,0.00019178,2]
[421282990,1777335044891,-500.0,0.00019178,2]
[421282991,1777335044900,-500.0,0.00019178,2]
[421282992,1777335044909,-500.0,0.00019178,2]
[421282993,1777335044919,-500.0,0.00019178,2]
[421282994,1777335044928,-470.49306524,0.00019178,2]
[421282995,1777335044937,-500.0,0.00019178,2]
[421282996,1777335044946,-388.37022762,0.00019178,2]
[421282997,1777335044955,-500.0,0.00019178,2]
[421282998,1777335044964,-500.0,0.00019178,2]
[421282999,1777335044974,-500.0,0.00019178,2]
[421283000,1777335044983,-500.0,0.00019178,2]
[421283001,1777335044992,-500.0,0.00019178,2]
[421283002,1777335045001,-500.0,0.00019178,2]
[421283003,1777335045010,-500.0,0.00019178,2]
[421283004,1777335045020,-500.0,0.00019178,2]
[421283005,1777335045029,-500.0,0.00019178,2]
[421283006,1777335045038,-500.0,0.00019178,2]
[421283007,1777335045047,-6825.69180126,0.00019275,2]
[421283008,1777335045056,-3067.28846073,0.00019352,2]
[421283009,1777335045065,-466.0,0.000194,5]
[421283010,1777335045074,-184.4412,0.00019419,2]
[421283011,1777335045084,-617.33659928,0.00019451,2]
[421283012,1777335045093,-617.33659928,0.00019451,2]
[421283013,1777335045103,-299.61875729,0.00019452,2]
[421283014,1777335045112,-500.0,0.00019452,2]
[421283015,1777335045122,-500.0,0.00019452,2]
[421283016,1777335045131,-680.12,0.00019452,2]
[421283017,1777335045141,-681.08,0.00019452,2]
[421283018,1777335045151,-692.46,0.00019452,2]
[421283019,1777335045161,-598.14,0.00019452,2]
[421283020,1777335045170,-500.0,0.00019452,2]
[421283021,1777335045179,-500.0,0.00019452,2]
[421283022,1777335045188,-500.0,0.00019452,2]
[421283023,1777335045197,-500.0,0.00019452,2]
[421283024,1777335045207,-696.8,0.00019452,2]
[421283025,1777335045217,-500.0,0.00019452,2]
[421283026,1777335045226,-626.66,0.00019452,2]
[421283027,1777335045235,-500.0,0.00019452,2]
[421283028,1777335045245,-500.0,0.00019452,2]
[421283029,1777335045255,-309.56,0.00019452,2]
[421283030,1777335045265,-500.0,0.00019452,2]
[421283031,1777335045274,-500.0,0.00019452,2]
[421283032,1777335045284,-500.0,0.00019452,2]
[421283033,1777335045294,-500.0,0.00019452,2]
[421283034,1777335045303,-500.0,0.00019452,2]
[421283035,1777335045314,-574.6594877,0.00019452,2]
[421283036,1777335045324,-500.0,0.00019452,2]
[421283037,1777335045334,-500.0,0.00019452,2]
[421283038,1777335045344,-521.72,0.00019452,2]
[421283039,1777335045353,-500.0,0.00019452,2]
[421283040,1777335045365,-500.0,0.00019452,2]
[421283041,1777335045375,-500.0,0.00019452,2]
[421283042,1777335045384,-500.0,0.00019452,2]
[421283043,1777335045393,-195.51,0.00019452,2]
[421283044,1777335045402,-422.13,0.00019452,2]
[421283045,1777335045411,-500.0,0.00019452,2]
[421283046,1777335045420,-626.33,0.00019452,2]
[421283047,1777335045429,-510.77,0.00019452,2]
[421283048,1777335045439,-588.77,0.00019452,2]
[421283049,1777335045448,-283.16,0.00019452,2]
[421283050,1777335045457,-181.80923769,0.00019452,2]
[421283051,1777335045466,-500.0,0.00019452,2]
[421283052,1777335045475,-225.96,0.00019452,2]
[421283053,1777335045484,-263.96,0.00019452,2]
[421283054,1777335045493,-324.34,0.00019452,2]
[421283055,1777335045502,-500.0,0.00019452,2]
[421283056,1777335045511,-599.07165682,0.00019452,2]
[421283057,1777335045520,-500.0,0.00019452,2]
[421283058,1777335045529,-275.17,0.00019452,2]
[421283059,1777335045539,-229.97,0.00019452,2]
[421283060,1777335045548,-396.28,0.00019452,2]
[421283061,1777335045557,-589.63,0.00019452,2]
[421283062,1777335045566,-500.0,0.00019452,2]
[421283063,1777335045576,-500.0,0.00019452,2]
[421283064,1777335045585,-479.3,0.00019452,2]
[421283065,1777335045594,-547.84,0.00019452,2]
[421283066,1777335045603,-495.41,0.00019452,2]
[421283067,1777335045613,-500.0,0.00019452,2]
[421283068,1777335045622,-152.5881271,0.00019452,2]
[421283069,1777335045631,-389.14,0.00019452,2]
[421283070,1777335045640,-500.0,0.00019452,2]
[421283071,1777335045650,-633.32,0.00019452,2]
[421283072,1777335045659,-229.82795795,0.00019452,2]
[421283073,1777335045669,-232.44,0.00019452,2]
[421283074,1777335045678,-384.42,0.00019452,2]
[421283075,1777335045687,-399.11,0.00019452,2]
[421283076,1777335045697,-188.41,0.00019452,2]
[421283077,1777335045706,-338.20371277,0.00019452,2]
[421283078,1777335045715,-311.31,0.00019452,2]
[421283079,1777335045724,-245.14,0.00019452,2]
[421283080,1777335045734,-273.23055063,0.00019452,2]
[421283081,1777335045743,-500.0,0.00019452,2]
[421283082,1777335045752,-500.0,0.00019452,2]
[421283083,1777335045762,-500.0,0.00019452,2]
[421283084,1777335045771,-242.05,0.00019452,2]
[421283085,1777335045780,-468.79,0.00019452,2]
[421283086,1777335045789,-634.44,0.00019452,2]
[421283087,1777335045799,-500.0,0.00019452,2]
[421283088,1777335045808,-267.45,0.00019452,2]
[421283089,1777335045817,-500.0,0.00019452,2]
[421283090,1777335045826,-339.74,0.00019452,2]
[421283091,1777335045835,-181.23,0.00019452,2]
[421283092,1777335045844,-333.43,0.00019452,2]
[421283093,1777335045854,-500.0,0.00019452,2]
[421283094,1777335045863,-500.0,0.00019452,2]
[421283095,1777335045872,-438.7,0.00019452,2]
[421283096,1777335045881,-500.0,0.00019452,2]
[421283097,1777335045891,-567.42,0.00019452,2]
[421283098,1777335045900,-500.0,0.00019452,2]
[421283099,1777335045909,-500.0,0.00019452,2]
[421283100,1777335045919,-257.97,0.00019452,2]
[421283101,1777335045928,-500.0,0.00019452,2]
[421283102,1777335045937,-356.69,0.00019452,2]
[421283103,1777335045947,-500.0,0.00019452,2]
[421283104,1777335045956,-194.69,0.00019452,2]
[421283105,1777335045965,-500.0,0.00019452,2]
[421283106,1777335045975,-438.5,0.00019452,2]
[421283107,1777335045984,-500.0,0.00019452,2]
[421283108,1777335045993,-500.0,0.00019452,2]
[421283109,1777335046002,-500.0,0.00019452,2]
[421283110,1777335046011,-500.0,0.00019452,2]
[421283111,1777335046021,-614.78,0.00019452,2]
[421283112,1777335046030,-533.09,0.00019452,2]
[421283113,1777335046040,-500.0,0.00019452,2]
[421283114,1777335046050,-231.75,0.00019452,2]
[421283115,1777335046059,-221.12085858,0.00019452,2]
[421283116,1777335046070,-500.0,0.00019452,2]
[421283117,1777335046079,-500.0,0.00019452,2]
[421283118,1777335046089,-209.75,0.00019452,2]
[421283120,1777335046099,-500.0,0.00019452,2]
[421283122,1777335046109,-500.0,0.00019452,2]
[421283124,1777335046118,-257.6,0.00019452,2]
[421283125,1777335046127,-500.0,0.00019452,2]
[421283126,1777335046136,-500.0,0.00019452,2]
[421283127,1777335046145,-500.0,0.00019452,2]
[421283129,1777335046155,-321.54,0.00019452,2]
[421283131,1777335046164,-500.0,0.00019452,2]
[421283133,1777335046173,-500.0,0.00019452,2]
[421283135,1777335046182,-500.0,0.00019452,2]
[421283137,1777335046192,-500.0,0.00019452,2]
[421283139,1777335046201,-500.0,0.00019452,2]
[421283141,1777335046211,-500.0,0.00019452,2]
[421283143,1777335046221,-520.3,0.00019452,2]
[421283145,1777335046230,-500.0,0.00019452,2]
[421283147,1777335046239,-500.0,0.00019452,2]
[421283149,1777335046248,-593.65,0.00019452,2]
[421283151,1777335046258,-500.0,0.00019452,2]
[421283153,1777335046267,-247.32,0.00019452,2]
[421283154,1777335046276,-500.0,0.00019452,2]
[421283155,1777335046285,-500.0,0.00019452,2]
[421283156,1777335046294,-500.0,0.00019452,2]
[421283157,1777335046304,-500.0,0.00019452,2]
[421283158,1777335046313,-629.55,0.00019452,2]
[421283159,1777335046322,-500.0,0.00019452,2]
[421283160,1777335046332,-500.0,0.00019452,2]
[421283161,1777335046342,-514.5,0.00019452,2]
[421283162,1777335046351,-547.25,0.00019452,2]
[421283163,1777335046360,-181.37,0.00019452,2]
[421283164,1777335046369,-500.0,0.00019452,2]
[421283165,1777335046378,-181.92,0.00019452,2]
[421283166,1777335046387,-500.0,0.00019452,2]
[421283167,1777335046396,-271.36,0.00019452,2]
[421283168,1777335046406,-500.0,0.00019452,2]
[421283169,1777335046415,-624.15,0.00019452,2]
[421283170,1777335046424,-500.0,0.00019452,2]
[421283171,1777335046434,-358.58,0.00019452,2]
[421283172,1777335046443,-500.0,0.00019452,2]
[421283173,1777335046452,-500.0,0.00019452,2]
[421283174,1777335046461,-228.62,0.00019452,2]
[421283175,1777335046471,-268.28,0.00019452,2]
[421283176,1777335046480,-500.0,0.00019452,2]
[421283177,1777335046660,-615.72,0.00019452,2]
[421283178,1777335046669,-500.0,0.00019452,2]
[421283179,1777335046678,-549.45,0.00019452,2]
[421283180,1777335046687,-500.0,0.00019452,2]
[421283181,1777335046696,-577.81,0.00019452,2]
[421283182,1777335046705,-500.0,0.00019452,2]
[421283183,1777335046714,-638.72,0.00019452,2]
[421283184,1777335046723,-500.0,0.00019452,2]
[421283185,1777335046734,-500.0,0.00019452,2]
[421283186,1777335046743,-583.04,0.00019452,2]
[421283187,1777335046752,-230.43,0.00019452,2]
[421283188,1777335046761,-320.14,0.00019452,2]
[421283189,1777335046770,-500.52275766,0.00019452,2]
[421283190,1777335046780,-500.0,0.00019452,2]
[421283191,1777335046789,-247.70331513,0.00019452,2]
[421283192,1777335046798,-500.0,0.00019452,2]
[421283193,1777335046807,-500.0,0.00019452,2]
[421283194,1777335046816,-500.0,0.00019452,2]
[421283195,1777335046825,-601.88,0.00019452,2]
[421283196,1777335046834,-616.76,0.00019452,2]
[421283197,1777335046843,-500.0,0.00019452,2]
[421283198,1777335046852,-168.36368414,0.00019452,2]
[421283199,1777335046861,-256.84163238,0.00019452,2]
[421283200,1777335046870,-500.0,0.00019452,2]
[421283201,1777335046879,-500.0,0.00019452,2]
[421283202,1777335046889,-500.0,0.00019452,2]
[421283203,1777335046898,-287.13,0.00019452,2]
[421283204,1777335046907,-517.07,0.00019452,2]
[421283205,1777335046915,-632.9,0.00019452,2]
[421283206,1777335046925,-500.0,0.00019452,2]
[421283207,1777335046934,-500.0,0.00019452,2]
[421283208,1777335046943,-156.35075662,0.00019452,2]
[421283209,1777335046952,-500.0,0.00019452,2]
[421283210,1777335046962,-500.0,0.00019452,2]
[421283211,1777335046971,-369.2,0.00019452,2]
[421283212,1777335046980,-277.74,0.00019452,2]
[421283213,1777335046990,-227.78,0.00019452,2]
[421283214,1777335046999,-241.43784435,0.00019452,2]
[421283215,1777335047009,-500.0,0.00019452,2]
[421283216,1777335047019,-500.0,0.00019452,2]
[421283217,1777335047028,-500.0,0.00019452,2]
[421283218,1777335047038,-190.99,0.00019452,2]
[421283219,1777335047047,-500.0,0.00019452,2]
[421283220,1777335047057,-230.7,0.00019452,2]
[421283221,1777335047066,-500.0,0.00019452,2]
[421283222,1777335047076,-242.05,0.00019452,2]
[421283223,1777335047087,-630.55,0.00019452,2]
[421283224,1777335047096,-273.27,0.00019452,2]
[421283225,1777335047107,-596.49,0.00019452,2]
[421283226,1777335047116,-500.0,0.00019452,2]
[421283227,1777335047126,-229.79,0.00019452,2]
[421283228,1777335047136,-500.0,0.00019452,2]
[421283229,1777335047145,-500.0,0.00019452,2]
[421283230,1777335047155,-233.73,0.00019452,2]
[421283231,1777335047165,-536.9,0.00019452,2]
[421283232,1777335047174,-500.0,0.00019452,2]
[421283233,1777335047184,-642.57,0.00019452,2]
[421283234,1777335047193,-386.01,0.00019452,2]
[421283235,1777335047202,-500.0,0.00019452,2]
[421283236,1777335047212,-500.0,0.00019452,2]
[421283237,1777335047221,-500.0,0.00019452,2]
[421283238,1777335047230,-500.0,0.00019452,2]
[421283239,1777335047240,-584.82,0.00019452,2]
[421283240,1777335047249,-374.81,0.00019452,2]
[421283241,1777335047259,-500.0,0.00019452,2]
[421283242,1777335047268,-500.0,0.00019452,2]
[421283243,1777335047277,-422.13,0.00019452,2]
[421283244,1777335047287,-168.97,0.00019452,2]
[421283245,1777335047296,-500.0,0.00019452,2]
[421283246,1777335047306,-567.73,0.00019452,2]
[421283247,1777335047315,-500.0,0.00019452,2]
[421283248,1777335047325,-245.89,0.00019452,2]
[421283249,1777335047335,-500.0,0.00019452,2]
[421283250,1777335047344,-500.0,0.00019452,2]
[421283251,1777335047353,-500.0,0.00019452,2]
[421283252,1777335047363,-603.88,0.00019452,2]
[421283253,1777335047372,-618.78,0.00019452,2]
[421283254,1777335047382,-629.19,0.00019452,2]
[421283255,1777335047392,-500.0,0.00019452,2]
[421283256,1777335047401,-166.72,0.00019452,2]
[421283257,1777335047410,-500.0,0.00019452,2]
[421283258,1777335047420,-571.82,0.00019452,2]
[421283259,1777335047429,-611.17,0.00019452,2]
[421283260,1777335047438,-247.16,0.00019452,2]
[421283261,1777335047448,-516.99,0.00019452,2]
[421283262,1777335047457,-268.84,0.00019452,2]
[421283263,1777335047466,-152.85,0.00019452,2]
[421283264,1777335047476,-334.78,0.00019452,2]
[421283265,1777335047486,-500.0,0.00019452,2]
[421283266,1777335047495,-634.94,0.00019452,2]
[421283267,1777335047505,-500.0,0.00019452,2]
[421283268,1777335047514,-440.4,0.00019452,2]
[421283269,1777335047524,-500.0,0.00019452,2]
[421283270,1777335047533,-500.0,0.00019452,2]
[421283271,1777335047543,-275.17,0.00019452,2]
[421283272,1777335047552,-500.0,0.00019452,2]
[421283273,1777335047562,-495.33,0.00019452,2]
[421283274,1777335047571,-500.0,0.00019452,2]
[421283275,1777335047580,-500.0,0.00019452,2]
[421283276,1777335047590,-500.0,0.00019452,2]
[421283277,1777335047601,-500.0,0.00019452,2]
[421283278,1777335047610,-500.0,0.00019452,2]
[421283279,1777335047620,-500.0,0.00019452,2]
[421283280,1777335047629,-500.0,0.00019452,2]
[421283281,1777335047639,-259.15,0.00019452,2]
[421283282,1777335047648,-500.0,0.00019452,2]
[421283283,1777335047658,-500.0,0.00019452,2]
[421283284,1777335047667,-513.6,0.00019452,2]
[421283285,1777335047677,-500.0,0.00019452,2]
[421283286,1777335047686,-616.75,0.00019452,2]
[421283287,1777335047695,-634.1,0.00019452,2]
[421283288,1777335047705,-596.98830066,0.00019452,2]
[421283289,1777335047715,-500.0,0.00019452,2]
[421283290,1777335047724,-500.0,0.00019452,2]
[421283291,1777335047733,-500.0,0.00019452,2]
[421283292,1777335047743,-500.0,0.00019452,2]
[421283293,1777335047752,-151.17,0.00019452,2]
[421283294,1777335047761,-500.0,0.00019452,2]
[421283295,1777335047771,-386.65166063,0.00019452,2]
[421283296,1777335047780,-500.0,0.00019452,2]
[421283297,1777335047789,-500.0,0.00019452,2]
[421283298,1777335047799,-500.0,0.00019452,2]
[421283299,1777335047808,-195.51,0.00019452,2]
[421283300,1777335047818,-500.0,0.00019452,2]
[421283301,1777335047827,-500.0,0.00019452,2]
[421283302,1777335047837,-500.0,0.00019452,2]
[421283303,1777335047847,-500.0,0.00019452,2]
[421283304,1777335047856,-500.0,0.00019452,2]
[421283305,1777335047865,-500.0,0.00019452,2]
[421283306,1777335047874,-500.0,0.00019452,2]
[421283307,1777335047883,-500.0,0.00019452,2]
[421283308,1777335047893,-500.0,0.00019452,2]
[421283309,1777335047903,-500.0,0.00019452,2]
[421283310,1777335047912,-500.0,0.00019452,2]
[421283311,1777335047922,-500.0,0.00019452,2]
[421283312,1777335047931,-500.0,0.00019452,2]
[421283313,1777335047940,-500.0,0.00019452,2]
[421283314,1777335047950,-396.28,0.00019452,2]
[421283315,1777335047959,-500.0,0.00019452,2]
[421283316,1777335047970,-577.11417763,0.00019452,2]
[421283317,1777335047979,-500.0,0.00019452,2]
[421283318,1777335047989,-500.0,0.00019452,2]
[421283319,1777335047998,-500.0,0.00019452,2]
[421283320,1777335048008,-500.0,0.00019452,2]
[421283321,1777335048018,-590.46136404,0.00019452,2]
[421283322,1777335048028,-500.0,0.00019452,2]
[421283323,1777335048038,-500.0,0.00019452,2]
[421283324,1777335048046,-500.0,0.00019452,2]
[421283325,1777335048056,-500.0,0.00019452,2]
[421283326,1777335048065,-500.0,0.00019452,2]
[421283327,1777335048074,-500.0,0.00019452,2]
[421283328,1777335048083,-500.0,0.00019452,2]
[421283329,1777335048093,-311.71643126,0.00019452,2]
[421283330,1777335048103,-500.0,0.00019452,2]
[421283331,1777335048112,-500.0,0.00019452,2]
[421283332,1777335048122,-500.0,0.00019452,2]
[421283333,1777335048131,-500.0,0.00019452,2]
[421283334,1777335048140,-500.0,0.00019452,2]
[421283335,1777335048149,-500.0,0.00019452,2]
[421283336,1777335048159,-500.0,0.00019452,2]
[421283337,1777335048168,-500.0,0.00019452,2]
[421283338,1777335048178,-500.0,0.00019452,2]
[421283339,1777335048187,-500.0,0.00019452,2]
[421283340,1777335048196,-500.0,0.00019452,2]
[421283341,1777335048206,-500.0,0.00019452,2]
[421283342,1777335048216,-500.0,0.00019452,2]
[421283343,1777335048225,-1040.68,0.00019452,2]
[421283344,1777335048234,-519.86513528,0.00019452,2]
[421283345,1777335048244,-500.0,0.00019452,2]
[421283346,1777335048253,-500.0,0.00019452,2]
[421283347,1777335048262,-500.0,0.00019452,2]
[421283348,1777335048271,-500.0,0.00019452,2]
[421283349,1777335048280,-500.0,0.00019452,2]
[421283350,1777335048289,-500.0,0.00019452,2]
[421283351,1777335048299,-500.0,0.00019452,2]
[421283352,1777335048308,-500.0,0.00019452,2]
[421283353,1777335048317,-373.26371157,0.00019452,2]
[421283354,1777335048327,-409.93898605,0.00019452,2]
[421283355,1777335048336,-500.0,0.00019452,2]
[421283356,1777335048345,-500.0,0.00019452,2]
[421283357,1777335048354,-500.0,0.00019452,2]
[421283358,1777335048364,-500.0,0.00019452,2]
[421283359,1777335048373,-500.0,0.00019452,2]
[421283360,1777335048382,-500.0,0.00019452,2]
[421283361,1777335048392,-500.0,0.00019452,2]
[421283362,1777335048401,-500.0,0.00019452,2]
[421283363,1777335048410,-500.0,0.00019452,2]
[421283364,1777335048419,-500.0,0.00019452,2]
[421283365,1777335048428,-500.0,0.00019452,2]
[421283366,1777335048437,-500.0,0.00019452,2]
[421283367,1777335048447,-500.0,0.00019452,2]
[421283368,1777335048457,-615.21525112,0.00019452,2]
[421283369,1777335048467,-500.0,0.00019452,2]
[421283370,1777335048476,-500.0,0.00019452,2]
[421283371,1777335048485,-500.0,0.00019452,2]
[421283372,1777335048494,-500.0,0.00019452,2]
[421283373,1777335048504,-500.0,0.00019452,2]
[421283374,1777335048513,-500.0,0.00019452,2]
[421283375,1777335048522,-500.0,0.00019452,2]
[421283376,1777335048531,-500.0,0.00019452,2]
[421283377,1777335048541,-500.0,0.00019452,2]
[421283378,1777335048550,-500.0,0.00019452,2]
[421283379,1777335048560,-500.0,0.00019452,2]
[421283380,1777335048569,-500.0,0.00019452,2]
[421283381,1777335048578,-611.17,0.00019452,2]
[421283382,1777335048587,-500.0,0.00019452,2]
[421283383,1777335048597,-500.0,0.00019452,2]
[421283384,1777335048606,-500.0,0.00019452,2]
[421283385,1777335048615,-500.0,0.00019452,2]
[421283386,1777335048625,-500.0,0.00019452,2]
[421283387,1777335048634,-500.0,0.00019452,2]
[421283388,1777335048644,-500.0,0.00019452,2]
[421283389,1777335048653,-257.55294169,0.00019452,2]
[421283390,1777335048662,-268.84,0.00019452,2]
[421283391,1777335048670,-500.0,0.00019452,2]
[421283392,1777335048680,-500.0,0.00019452,2]
[421283393,1777335048689,-500.0,0.00019452,2]
[421283394,1777335048699,-334.78,0.00019452,2]
[421283395,1777335048708,-500.0,0.00019452,2]
[421283396,1777335048718,-500.0,0.00019452,2]
[421283397,1777335048727,-500.0,0.00019452,2]
[421283398,1777335048736,-624.54,0.00019452,2]
[421283399,1777335048745,-500.0,0.00019452,2]
[421283400,1777335048754,-440.4,0.00019452,2]
[421283401,1777335048763,-500.72,0.00019452,2]
[421283402,1777335048773,-513.06,0.00019452,2]
[421283403,1777335048782,-500.0,0.00019452,2]
[421283404,1777335048792,-500.0,0.00019452,2]
[421283405,1777335048801,-500.0,0.00019452,2]
[421283406,1777335048810,-500.0,0.00019452,2]
[421283407,1777335048820,-500.0,0.00019452,2]
[421283408,1777335048829,-500.0,0.00019452,2]
[421283409,1777335048838,-500.0,0.00019452,2]
[421283410,1777335048848,-500.0,0.00019452,2]
[421283411,1777335048857,-500.0,0.00019452,2]
[421283412,1777335048866,-500.0,0.00019452,2]
[421283413,1777335048877,-500.0,0.00019452,2]
[421283414,1777335048887,-500.0,0.00019452,2]
[421283415,1777335048896,-500.0,0.00019452,2]
[421283416,1777335048906,-500.0,0.00019452,2]
[421283417,1777335048915,-508.74056091,0.00019452,2]
[421283418,1777335048925,-500.0,0.00019452,2]
[421283419,1777335048935,-500.0,0.00019452,2]
[421283420,1777335048944,-500.0,0.00019452,2]
[421283421,1777335048953,-500.0,0.00019452,2]
[421283422,1777335048963,-500.0,0.00019452,2]
[421283423,1777335048972,-500.0,0.00019452,2]
[421283424,1777335048981,-500.0,0.00019452,2]
[421283425,1777335048991,-500.0,0.00019452,2]